bitfinex/quotes_ETHUSD_20250807
["timestamp","ask_amount","ask_price","bid_price","bid_amount"]
[1754578023658,2.62390159,3811.2,3810.3,2.62440928]
[1754578023828,6.75394565,3811.1,3810.3,2.62440928]
[1754578024035,6.75394565,3811.1,3810.3,2.62446526]
[1754578024036,14.5,3811.0,3810.3,2.62446526]
[1754578024221,14.5,3811.0,3810.1,0.4567]
[1754578024429,4.129,3810.9,3810.4,2.62435347]
[1754578024953,4.129,3810.9,3810.5,2.62431305]
[1754578025251,4.129,3810.9,3810.1,0.4567]
[1754578025553,4.128,3810.8,3810.3,2.62442908]
[1754578026056,4.128,3810.8,3810.3,2.6244591]
[1754578026235,0.1312,3810.7,3810.1,0.1312]
[1754578026434,0.1312,3810.5,3810.3,2.62441577]
[1754578026651,4.126,3810.4,3810.3,2.62446526]
[1754578027221,4.127,3810.7,3810.4,3.0]
[1754578027346,0.1312,3811.3,3811.2,2.6238455]
[1754578027535,1.10594862,3811.8,3810.5,0.4567]
[1754578027536,7.086272,3811.6,3811.1,2.75510982]
[1754578027734,4.131,3811.5,3811.4,2.62370782]
[1754578028136,4.2622,3811.5,3811.3,2.62377444]
[1754578028336,0.54727542,3811.4,3811.2,2.62383291]
[1754578028536,4.67927542,3811.3,3811.2,2.62383291]
[1754578028738,4.132,3811.3,3811.2,2.62383291]
[1754578029049,4.132,3811.3,3811.0,0.1312]
[1754578029245,0.54759472,3811.2,3811.0,0.1312]
[1754578029445,0.9237,3811.3,3811.1,2.62391104]
[1754578029633,4.68360517,3811.2,3811.1,2.62391104]
[1754578030061,4.68360517,3811.2,3811.0,2.62396557]
[1754578030248,4.136,3811.2,3811.1,2.62391435]
[1754578030433,4.68395287,3811.2,3811.1,2.62391435]
[1754578031041,4.68395287,3811.2,3811.0,2.62392938]
[1754578031242,0.54795287,3811.1,3811.0,2.6239832]
[1754578031881,1.94004816,3811.1,3809.9,0.4567]
[1754578032184,2.62409943,3810.9,3810.1,2.62453517]
[1754578032367,2.62409943,3810.9,3809.7,0.001]
[1754578032368,5.61065287,3810.8,3810.0,2.62462534]
[1754578032538,0.54795287,3810.7,3810.0,2.62462534]
[1754578032869,4.68595287,3810.6,3809.7,0.02724878]
[1754578033037,4.68595287,3810.6,3809.7,0.001]
[1754578033038,2.62444252,3810.4,3809.7,0.001]
[1754578033240,4.68795287,3810.3,3809.7,0.001]
[1754578033451,2.62463495,3810.1,3809.7,0.001]
[1754578033662,1.06266816,3810.2,3809.7,0.001]
[1754578033663,2.6248097,3809.8,3809.7,0.001]
[1754578033869,3.17276257,3809.8,3809.7,0.001]
[1754578034080,4.09646257,3809.8,3809.7,0.001]
[1754578034375,9.34315248,3809.8,3809.7,0.001]
[1754578034571,9.32348108,3809.8,3809.7,0.001]
[1754578034739,15.62448108,3809.8,3809.7,0.001]
[1754578035782,7.77265287,3809.8,3809.7,0.001]
[1754578035983,11.91165287,3809.8,3809.7,0.001]
[1754578036392,11.91665287,3809.8,3809.7,0.001]
[1754578036560,14.54146257,3809.8,3809.7,0.001]
[1754578037492,14.54646257,3809.8,3809.7,0.001]
[1754578037694,16.26357626,3809.8,3809.7,0.001]
[1754578038391,17.05224426,3809.8,3809.7,0.001]
[1754578038597,14.42743456,3809.8,3809.7,0.001]
[1754578038801,7.63762087,3809.8,3809.7,0.001]
[1754578038987,7.77265287,3809.8,3809.7,0.001]
[1754578039305,10.456,3809.8,3809.7,0.001]
[1754578039471,10.5872,3809.8,3809.7,0.001]
[1754578039670,4.2902,3809.8,3809.7,0.001]
[1754578040216,4.162,3809.8,3809.7,0.001]
[1754578040500,4.166,3809.8,3809.7,3.08257859]
[1754578040801,4.166,3809.8,3809.7,3.21377859]
[1754578041396,4.166,3809.8,3809.7,0.001]
[1754578041577,5.0221812,3809.8,3809.7,0.001]
[1754578041899,5.9458812,3809.8,3809.7,0.001]
[1754578042625,2.62370587,3811.5,3809.7,0.4577]
[1754578042762,4.71313244,3810.5,3810.0,2.62462749]
[1754578042961,5.63683244,3810.5,3810.0,2.62462749]
[1754578043162,5.0907,3810.5,3810.0,2.62462749]
[1754578043363,5.0907,3810.5,3809.7,0.4577]
[1754578043563,5.0907,3810.5,3810.1,2.62455582]
[1754578044003,5.0907,3810.5,3809.7,0.4577]
[1754578044004,4.167,3810.5,3809.7,0.4577]
[1754578044302,4.167,3810.5,3810.2,2.62446889]
[1754578044459,4.167,3810.5,3809.8,0.4567]
[1754578044972,4.17,3810.4,3810.3,2.62446526]
[1754578045177,1.08192268,3810.6,3810.5,2.62432751]
[1754578045374,5.25892268,3810.6,3810.5,3.08102751]
[1754578045577,1.2409882,3812.6,3810.8,2.62412091]
[1754578045791,4.73579759,3812.5,3812.1,2.62319697]
[1754578046093,0.54679759,3812.4,3812.3,2.62308842]
[1754578046810,4.189,3812.5,3812.0,3.07997121]
[1754578047261,0.54679759,3812.9,3812.7,2.62276321]
[1754578047466,4.191,3812.8,3812.7,2.62276321]
[1754578047799,0.54679759,3813.2,3812.7,0.4567]
[1754578048105,4.19,3813.1,3813.0,2.62260275]
[1754578048466,0.54679759,3813.2,3813.1,2.62253809]
[1754578048804,4.19,3813.2,3813.1,2.62253809]
[1754578048999,4.19,3813.2,3813.1,3.07403809]
[1754578049499,4.19,3813.2,3812.4,2.62299777]
[1754578049500,5.2393,3813.2,3811.9,0.4515]
[1754578049666,5.2393,3813.2,3812.3,0.4515]
[1754578049866,6.303,3813.3,3812.4,0.4515]
[1754578050090,6.303,3813.3,3813.2,2.62246931]
[1754578050475,10.507,3813.3,3813.2,3.07396931]
[1754578051072,4.204,3813.3,3813.2,2.62246931]
[1754578051884,0.002,3813.6,3813.5,2.62226301]
[1754578052205,4.203,3813.6,3813.5,2.62226301]
[1754578052363,4.203,3813.6,3813.5,3.07376301]
[1754578052700,4.203,3813.6,3813.5,3.62566301]
[1754578053097,4.203,3813.6,3813.5,3.20496301]
[1754578053676,4.203,3813.6,3813.5,3.07376301]
[1754578053902,4.203,3813.6,3813.5,3.20496301]
[1754578054090,4.203,3813.6,3813.5,2.75346301]
[1754578054288,4.203,3813.6,3813.5,0.1312]
[1754578054489,4.203,3813.6,3813.3,0.1312]
[1754578054805,0.9028,3813.5,3813.0,0.1312]
[1754578055006,0.1312,3813.3,3812.8,0.1312]
[1754578055208,4.197,3813.2,3812.8,0.1312]
[1754578055395,1.33562,3813.1,3812.7,2.6227549]
[1754578055706,0.1312,3812.9,3812.4,0.1312]
[1754578056008,4.197,3812.8,3812.7,2.62281322]
[1754578056206,0.9028,3813.5,3812.5,2.62295081]
[1754578056207,3.52508842,3813.5,3813.3,95.6718]
[1754578056374,5.00109965,3813.4,3813.3,95.6718]
[1754578056577,4.68109965,3813.4,3813.3,95.6718]
[1754578056799,4.196,3813.4,3813.3,95.6718]
[1754578056996,0.002,3813.6,3813.3,98.29419863]
[1754578057245,4.196,3813.5,3813.4,3.07383177]
[1754578057780,0.002,3813.6,3813.5,2.62226301]
[1754578057981,0.002,3813.6,3813.5,6.17834229]
[1754578058384,0.002,3813.6,3813.5,5.75764229]
[1754578059011,0.002,3813.6,3813.5,2.62226301]
[1754578059317,0.9048,3813.6,3813.3,95.6718]
[1754578059498,5.0968,3813.5,3813.3,95.6718]
[1754578059912,3.52513177,3813.4,3813.3,95.6718]
[1754578061338,5.0958,3813.4,3813.3,95.6718]
[1754578061637,8.49033138,3813.4,3813.3,95.6718]
[1754578062801,5.0958,3813.4,3813.3,95.6718]
[1754578063006,4.193,3813.4,3813.3,95.6718]
[1754578063301,7.71813177,3813.4,3813.3,95.6718]
[1754578063524,5.0958,3813.4,3813.3,95.6718]
[1754578064041,4.193,3813.4,3813.3,95.6718]
[1754578064826,4.189,3813.4,3813.3,95.6718]
[1754578067425,4.185,3813.4,3813.3,95.6718]
[1754578067942,7.71013177,3813.4,3813.3,95.6718]
[1754578069837,4.181,3813.4,3813.3,95.6718]
[1754578070224,4.181,3813.4,3813.3,98.29420054]
[1754578070428,4.181,3813.4,3813.3,95.6718]
[1754578071823,6.93453177,3813.4,3813.3,95.6718]
[1754578072110,7.84433177,3813.4,3813.3,95.6718]
[1754578072309,7.39273177,3813.4,3813.3,95.6718]
[1754578072533,6.94153177,3813.4,3813.3,95.6718]
[1754578072925,7.84433177,3813.4,3813.3,95.6718]
[1754578074447,9.44172904,3813.4,3813.3,88.33758485]
[1754578075431,9.44172904,3813.4,3813.3,72.65015705]
[1754578075666,12.99172904,3813.4,3813.3,55.5776095]
[1754578075833,13.13524842,3813.4,3813.3,55.5776095]
[1754578076237,13.13524842,3813.4,3811.4,0.4515]
[1754578076238,2.62323373,3812.1,3811.4,0.4515]
[1754578076440,0.1312,3811.6,3811.1,0.1312]
[1754578076640,4.182,3811.5,3811.1,2.75505892]
[1754578076950,4.182,3811.5,3811.3,2.62376763]
[1754578077127,0.1312,3811.6,3811.3,2.62376763]
[1754578077128,0.1312,3811.6,3811.5,2.62363898]
[1754578077333,4.182,3811.6,3811.5,0.1312]
[1754578077669,0.55150072,3813.2,3811.5,0.1312]
[1754578077670,4.181,3811.7,3811.5,3.62700285]
[1754578077864,0.1312,3812.3,3812.0,2.62326296]
[1754578078065,0.1312,3812.3,3811.5,0.36270028]
[1754578078066,4.182,3812.2,3812.1,2.62321664]
[1754578078433,4.183,3812.2,3812.1,3.53421664]
[1754578078766,0.1312,3812.6,3812.4,2.62296505]
[1754578078937,0.55150072,3813.0,3812.5,0.4913]
[1754578079138,4.86470072,3812.9,3812.5,0.4913]
[1754578079346,0.55150072,3812.8,3812.5,0.001]
[1754578080072,0.55150072,3812.8,3812.6,0.4903]
[1754578080258,0.55150072,3812.8,3812.6,2.62288202]
[1754578080459,0.1312,3813.0,3812.6,2.62288202]
[1754578080663,4.179,3813.0,3812.9,2.62267565]
[1754578080858,4.179,3813.0,3812.9,0.6215]
[1754578081172,4.179,3813.0,3812.9,3.66487565]
[1754578082350,4.179,3813.0,3812.9,0.1312]
[1754578082555,4.179,3813.0,3812.9,2.75387565]
[1754578082867,4.178,3813.0,3812.9,0.6215]
[1754578083061,4.178,3813.0,3812.9,3.11297565]
[1754578083236,4.178,3813.0,3812.9,0.1312]
[1754578083566,5.2032,3813.0,3812.6,2.62287395]
[1754578083869,5.2032,3813.0,3812.5,0.001]
[1754578084061,4.82952,3813.0,3812.5,0.001]
[1754578084261,0.894,3812.9,3812.5,0.001]
[1754578084463,4.177,3812.8,3812.7,2.62281322]
[1754578084771,4.177,3812.8,3812.7,3.11311322]
[1754578085348,0.55373648,3813.6,3812.7,0.4903]
[1754578085549,4.176,3813.5,3813.1,2.62249713]
[1754578085747,4.176,3813.5,3813.2,2.62244839]
[1754578085947,4.176,3813.5,3812.7,0.4903]
[1754578086163,4.176,3813.5,3812.5,0.001]
[1754578086164,4.0681277,3813.4,3812.5,0.001]
[1754578086361,0.0196714,3813.3,3812.5,0.001]
[1754578086548,0.894,3813.2,3812.5,0.001]
[1754578086763,2.62267579,3812.9,3812.5,0.001]
[1754578086964,0.68006758,3812.8,3812.5,0.001]
[1754578087165,4.18,3812.7,3812.5,0.001]
[1754578087365,3.51650516,3813.2,3812.5,0.001]
[1754578087540,6.80254797,3813.1,3812.5,0.001]
[1754578087879,4.73082994,3813.0,3812.5,0.001]
[1754578088074,3.44741754,3812.9,3812.5,0.001]
[1754578088275,2.27057144,3812.9,3812.5,0.001]
[1754578088870,4.178,3812.8,3812.5,0.001]
[1754578089259,4.73027202,3812.8,3812.5,0.001]
[1754578089574,5.62426782,3812.8,3812.5,0.001]
[1754578089756,2.35343153,3812.7,3812.5,0.001]
[1754578089955,2.37310293,3812.7,3812.5,0.001]
[1754578090154,4.06914984,3812.6,3812.5,0.001]
[1754578090359,3.51688202,3812.6,3812.5,0.001]
[1754578090557,7.69688202,3812.6,3812.5,0.001]
[1754578090782,10.05705707,3812.6,3812.5,0.001]
[1754578092378,10.60705707,3812.6,3812.5,0.001]
[1754578093349,13.60705707,3812.6,3812.5,1e-08]
[1754578093647,25.46062598,3812.6,3812.5,1e-08]
[1754578094278,10.34790806,3812.6,3812.5,1e-08]
[1754578094477,10.34790806,3812.6,3811.7,1e-08]
[1754578094478,2.62343249,3811.8,3811.7,1e-08]
[1754578094675,10.37337171,3811.8,3811.7,1e-08]
[1754578094877,11.79770031,3811.8,3811.7,1e-08]
[1754578095190,6.17350132,3811.7,3809.7,0.001]
[1754578095391,0.1312,3810.2,3809.7,2.62581762]
[1754578095549,4.18,3810.1,3809.8,0.911]
[1754578095753,4.18,3810.0,3809.9,0.4903]
[1754578096374,4.18,3810.0,3809.9,3.2462408]
[1754578096579,4.18,3810.0,3809.9,0.6215]
[1754578096850,2.6248097,3809.8,3809.7,0.001]
[1754578097251,3.6500097,3809.8,3809.7,0.001]
[1754578097492,3.6500097,3809.8,3809.7,1e-08]
[1754578097493,18.1500097,3809.8,3809.7,1e-08]
[1754578097690,0.55,3809.7,3807.5,0.19376617]
[1754578097895,5.0956714,3809.6,3808.0,0.4903]
[1754578098098,5.076,3809.6,3808.1,0.4207]
[1754578098251,5.076,3809.6,3808.6,2.62557629]
[1754578098454,14.5,3808.7,3808.6,3.11593671]
[1754578098662,14.5,3808.7,3808.6,4.11080284]
[1754578098663,4.183,3808.7,3808.6,4.11080284]
[1754578098895,4.183,3809.0,3808.9,2.62542991]
[1754578099210,0.4658,3810.4,3809.5,2.62494939]
[1754578099374,4.182,3810.3,3809.5,2.62494939]
[1754578099711,4.182,3810.3,3809.3,2.62514736]
[1754578099712,14.5,3809.8,3809.3,0.4903]
[1754578099911,4.183,3809.7,3809.6,2.6249475]
[1754578100058,14.5,3809.8,3809.7,2.62487859]
[1754578100266,18.682,3809.8,3809.7,0.26249475]
[1754578100462,14.5,3809.8,3809.7,3.11517859]
[1754578100661,14.5,3809.8,3809.7,3.53587859]
[1754578100904,18.681,3809.8,3809.7,3.11517859]
[1754578101201,18.681,3809.8,3809.7,2.62487859]
[1754578101404,18.681,3809.8,3809.2,0.4903]
[1754578101405,18.681,3809.8,3809.3,2.62510717]
[1754578101577,18.681,3809.8,3809.2,0.4903]
[1754578101578,18.681,3809.8,3809.5,2.6250105]
[1754578101762,18.681,3809.8,3809.6,2.62488677]
[1754578102103,18.681,3809.8,3808.8,0.4903]
[1754578102398,2.62500729,3809.6,3808.8,2.62548411]
[1754578102600,4.179,3809.5,3808.6,2.62561566]
[1754578102899,15.394,3809.8,3808.9,2.62540302]
[1754578103058,4.18,3809.7,3809.1,2.62527576]
[1754578103394,15.394,3809.8,3809.7,2.62487859]
[1754578103395,14.5,3809.8,3809.7,2.62487859]
[1754578103596,14.5,3809.8,3809.7,3.79836645]
[1754578104499,14.5,3809.8,3809.7,2.88736645]
[1754578104704,14.5,3809.8,3809.7,2.62487859]
[1754578104867,14.5,3809.8,3809.6,2.62493109]
[1754578105063,14.5,3809.8,3809.4,0.4903]
[1754578105278,14.5,3809.8,3809.7,2.62487859]
[1754578105999,14.5,3809.8,3809.7,3.68919809]
[1754578106201,18.682,3809.8,3809.7,3.68919809]
[1754578106564,14.5,3809.8,3809.7,3.68919809]
[1754578106912,18.68,3809.8,3809.7,3.68919809]
[1754578107064,18.68,3809.8,3809.7,2.62487859]
[1754578107264,18.68,3809.8,3809.6,2.62494285]
[1754578107488,18.68,3809.8,3809.5,2.62500447]
[1754578107805,18.68,3809.8,3809.5,0.1312]
[1754578108096,18.68,3809.8,3809.3,0.1312]
[1754578108097,18.8112,3809.8,3809.3,0.1312]
[1754578108285,18.8112,3809.8,3809.6,2.62494747]
[1754578108481,18.8112,3809.8,3809.7,2.62487859]
[1754578108687,18.68,3809.8,3809.7,2.62487859]
[1754578108888,18.68,3809.8,3809.5,0.1312]
[1754578109088,4.18,3809.8,3809.5,0.1312]
[1754578109665,14.5,3809.7,3809.5,0.1312]
[1754578110065,4.179,3809.6,3809.5,0.1312]
[1754578110270,4.179,3809.6,3808.7,0.4207]
[1754578110271,4.179,3809.6,3808.7,0.5165]
[1754578110499,4.179,3809.6,3809.3,0.1312]
[1754578110699,2.62508531,3809.4,3808.7,0.5165]
[1754578110891,2.62508531,3809.4,3807.6,2.6262752]
[1754578110892,4.175,3809.3,3808.9,0.1312]
[1754578111804,0.4304,3809.2,3808.3,0.5165]
[1754578112097,14.5,3809.7,3808.3,0.5165]
[1754578112098,4.175,3809.1,3809.0,0.1312]
[1754578112295,4.174,3809.1,3809.0,0.1312]
[1754578112701,5.1038,3809.1,3809.0,0.1312]
[1754578113006,4.174,3809.1,3808.8,2.7566798]
[1754578113305,4.174,3809.1,3808.7,0.001]
[1754578113306,0.9298,3809.0,3808.7,0.001]
[1754578113598,18.675,3808.9,3808.7,0.001]
[1754578114604,14.5,3808.9,3808.7,0.001]
[1754578114764,4.174,3808.8,3808.7,3.27426777]
[1754578114967,4.174,3808.8,3808.7,3.34775578]
[1754578115164,14.5,3808.9,3808.7,2.75776777]
[1754578115398,0.9298,3810.1,3809.4,2.62503118]
[1754578115602,4.172,3809.9,3809.3,2.62515248]
[1754578115808,0.1312,3809.9,3809.3,0.44536525]
[1754578116004,18.671,3809.8,3809.3,0.44536525]
[1754578116205,4.171,3809.7,3809.3,0.44536525]
[1754578116411,4.6014,3809.7,3809.3,0.1312]
[1754578116613,2.75628875,3809.4,3808.7,0.1322]
[1754578116784,21.29616462,3809.3,3808.7,0.1322]
[1754578116972,19.6008,3809.3,3808.7,0.1322]
[1754578117173,22.22600394,3809.3,3808.7,0.1322]
[1754578117482,22.2259702,3809.3,3808.7,0.1322]
[1754578117684,19.6008,3809.3,3808.7,0.1322]
[1754578117885,1.9928714,3809.2,3808.7,0.001]
[1754578118079,2.75669884,3808.8,3808.7,0.001]
[1754578118279,6.92669884,3808.8,3808.7,0.001]
[1754578118481,18.8002,3808.8,3808.7,0.001]
[1754578118773,22.35549884,3808.8,3808.7,0.001]
[1754578118979,24.85358806,3808.8,3808.7,0.001]
[1754578119587,22.22808922,3808.8,3808.7,0.001]
[1754578119782,19.73,3808.8,3808.7,0.001]
[1754578119988,14.6312,3808.8,3808.7,0.001]
[1754578120287,18.7992,3808.8,3808.7,0.001]
[1754578120502,14.6312,3808.8,3808.7,0.001]
[1754578120722,18.667,3808.8,3808.7,3.14306777]
[1754578121029,18.667,3808.8,3808.7,3.334745]
[1754578121313,18.667,3808.8,3807.5,0.5165]
[1754578121314,19.5968,3808.8,3807.5,0.5165]
[1754578121529,2.45908,3808.7,3808.0,2.62604336]
[1754578121730,4.178,3808.6,3808.4,2.62570569]
[1754578121876,4.178,3808.5,3807.9,0.5165]
[1754578122075,4.178,3808.4,3808.3,0.001]
[1754578122323,4.178,3808.4,3808.3,2.62684355]
[1754578122675,4.178,3808.4,3808.3,0.001]
[1754578122874,14.5,3808.8,3808.3,0.001]
[1754578123114,4.177,3808.7,3808.3,0.001]
[1754578123288,4.177,3808.6,3808.3,0.001]
[1754578123497,2.6257746,3808.4,3808.3,0.001]
[1754578123695,14.5,3808.5,3808.3,0.001]
[1754578123696,3.55551307,3808.5,3808.3,0.001]
[1754578123885,7.7455746,3808.4,3808.3,0.001]
[1754578124215,18.689,3808.4,3808.3,0.001]
[1754578124622,18.689,3808.4,3808.3,2.62684355]
[1754578124623,14.5,3808.4,3808.3,2.62684355]
[1754578124918,18.689,3808.4,3808.3,3.14334355]
[1754578125219,18.689,3808.4,3808.3,0.57792747]
[1754578125620,18.689,3808.4,3808.3,2.62684355]
[1754578125826,18.689,3808.4,3808.3,0.001]
[1754578126012,19.6188,3808.4,3808.3,0.001]
[1754578126186,18.689,3808.4,3808.3,0.001]
[1754578127521,18.689,3808.4,3808.3,2.62684355]
[1754578127719,14.5,3808.4,3808.3,2.62684355]
[1754578127926,6.305,3809.1,3808.6,2.62560526]
[1754578128223,5.1158,3809.0,3808.3,3.15209893]
[1754578128424,5.1158,3809.0,3808.3,2.62678307]
[1754578128425,14.5,3808.9,3808.3,2.62678307]
[1754578128648,4.186,3808.8,3808.3,0.001]
[1754578128925,2.62556836,3808.7,3808.3,0.001]
[1754578129126,4.189,3808.6,3808.3,0.001]
[1754578129292,14.5,3808.5,3808.3,0.001]
[1754578129495,14.5,3808.5,3808.3,2.62684355]
[1754578129724,14.5,3808.5,3808.4,2.6257746]
[1754578129942,4.188,3808.5,3808.4,4.08823642]
[1754578130139,4.188,3808.5,3808.4,1.46246182]
[1754578130438,4.188,3808.5,3808.4,4.08823642]
[1754578131119,4.188,3808.5,3808.4,4.21943642]
[1754578131493,4.188,3808.5,3808.4,2.7569746]
[1754578131736,4.188,3808.5,3808.4,3.2734746]
[1754578132297,4.188,3808.5,3808.4,2.7569746]
[1754578133056,2.62504119,3809.5,3808.4,2.7569746]
[1754578133057,1e-08,3809.7,3808.5,5.2514113]
[1754578133201,0.6306,3811.3,3809.4,2.62508531]
[1754578133533,14.5,3811.2,3809.6,5.75612923]
[1754578133695,0.68306549,3811.1,3810.9,2.62399245]
[1754578133899,1.48049339,3811.1,3810.9,2.62403872]
[1754578134095,0.9298,3811.0,3810.9,2.62403872]
[1754578134496,14.5,3811.0,3810.9,2.62403872]
[1754578134827,4.241,3811.2,3811.1,2.62391435]
[1754578135027,4.241,3811.2,3811.1,0.1312]
[1754578135234,4.241,3811.2,3811.1,2.75511435]
[1754578135529,4.241,3811.2,3811.1,0.1312]
[1754578135729,4.241,3811.2,3811.1,2.75511435]
[1754578136150,5.64999453,3811.2,3811.1,0.1312]
[1754578136350,8.27384003,3811.2,3811.1,0.1312]
[1754578136752,8.82415952,3811.2,3811.1,0.1312]
[1754578136920,8.95535952,3811.2,3810.5,0.1312]
[1754578137116,14.5,3811.6,3811.0,2.6239832]
[1754578137117,4.24,3811.1,3811.0,2.6239832]
[1754578137653,14.5,3811.5,3811.0,2.7551832]
[1754578137814,5.1688,3811.4,3811.0,0.1312]
[1754578138254,0.9144,3811.3,3811.0,0.1312]
[1754578138457,3.14210315,3811.3,3810.7,0.19978837]
[1754578138641,3.14210315,3811.3,3810.9,2.62404276]
[1754578138820,0.9144,3811.2,3810.8,2.75530128]
[1754578139016,4.237,3811.1,3810.8,0.1312]
[1754578139224,6.07336189,3811.1,3810.8,0.1312]
[1754578139417,5.15896189,3811.1,3810.3,2.62446526]
[1754578139617,4.237,3811.1,3810.8,0.1312]
[1754578139862,2.22770315,3811.3,3811.1,2.62390435]
[1754578140034,4.234,3811.2,3811.1,2.62390435]
[1754578140257,4.234,3811.2,3811.0,2.62396477]
[1754578140444,0.1312,3811.7,3811.0,0.53792791]
[1754578140643,4.233,3811.6,3811.4,2.62365932]
[1754578140828,4.233,3811.6,3811.2,2.6238455]
[1754578140829,4.233,3811.6,3811.5,0.1312]
[1754578141036,18.733,3811.6,3811.5,0.1312]
[1754578142052,19.6474,3811.6,3811.0,2.6239739]
[1754578142240,21.8746773,3811.6,3810.7,0.49]
[1754578142419,21.8746773,3811.6,3810.2,3.24392439]
[1754578142620,4.23,3811.5,3811.4,2.62370782]
[1754578143024,4.23,3811.5,3811.4,2.75490782]
[1754578143243,4.231,3811.5,3811.4,2.75490782]
[1754578144640,14.502,3811.8,3811.5,2.62362433]
[1754578144840,14.502,3811.8,3811.7,2.62350132]
[1754578145046,18.728,3811.8,3811.7,2.75470132]
[1754578145245,14.502,3811.8,3811.7,2.75470132]
[1754578145556,18.727,3811.8,3811.7,2.75470132]
[1754578145747,0.002,3811.8,3811.7,2.75470132]
[1754578145945,4.227,3811.8,3811.7,2.75470132]
[1754578146119,4.226,3811.8,3811.7,3.78515723]
[1754578146324,0.002,3811.8,3811.7,15.14782873]
[1754578146852,1e-08,3811.8,3811.7,18.14782873]
[1754578147052,1e-08,3812.2,3812.1,5.62322604]
[1754578147220,1e-08,3812.2,3812.1,11.72658384]
[1754578147424,1e-08,3812.2,3812.1,7.75212284]
[1754578147959,1e-08,3812.6,3812.5,6.17295081]
[1754578148158,1e-08,3812.6,3812.5,21.66752097]
[1754578148668,1e-08,3812.6,3812.5,22.57822097]
[1754578148855,1e-08,3812.6,3812.5,22.70942097]
[1754578150759,1e-08,3812.6,3812.5,22.90976471]
[1754578151337,1e-08,3812.6,3812.5,23.45976471]
[1754578151539,1e-08,3812.6,3812.5,22.90976471]
[1754578151738,1e-08,3812.6,3812.5,22.90276471]
[1754578152577,0.2515,3813.3,3813.2,2.62246931]
[1754578152736,1e-08,3813.3,3813.2,16.69564081]
[1754578152940,0.002,3814.5,3814.4,2.62164429]
[1754578153179,0.002,3814.5,3814.4,3.37380872]
[1754578153386,0.9164,3814.5,3814.4,2.75284429]
[1754578153673,0.002,3814.5,3814.4,2.75284429]
[1754578153836,0.9164,3814.5,3813.5,3.0]
[1754578154041,0.9144,3814.4,3813.9,2.62198761]
[1754578154251,1.26839676,3814.3,3813.6,2.62219425]
[1754578154573,1.26839676,3814.3,3814.0,2.62191564]
[1754578154574,0.4724,3814.2,3814.0,2.62191564]
[1754578154778,5.1304,3814.2,3813.9,2.62196505]
[1754578154937,4.216,3814.2,3813.9,2.62196505]
[1754578155140,0.002,3814.5,3814.1,2.62182479]
[1754578155475,0.9164,3814.5,3814.3,2.62171302]
[1754578155660,4.216,3814.5,3814.4,2.62164429]
[1754578155866,0.002,3814.5,3814.4,3.11164429]
[1754578156574,0.002,3814.5,3814.4,2.62164429]
[1754578157078,0.9164,3814.5,3814.0,2.62191924]
[1754578157382,0.9144,3814.4,3814.2,2.62177125]
[1754578157578,0.002,3814.5,3814.2,2.62177125]
[1754578157739,0.9144,3814.3,3814.2,2.62177125]
[1754578157941,0.9144,3814.3,3813.5,2.62226301]
[1754578158136,0.9144,3814.3,3813.5,2.22795266]
[1754578158367,5.1254,3814.2,3813.8,2.62201107]
[1754578158648,15.4144,3814.1,3813.7,2.62207596]
[1754578158851,0.9144,3814.0,3813.7,2.62207596]
[1754578159156,14.5,3814.1,3813.6,2.62219099]
[1754578159157,0.9144,3813.9,3813.6,2.62219099]
[1754578159349,0.9144,3813.9,3813.0,3.0]
[1754578159350,0.9144,3813.8,3813.4,2.62230325]
[1754578159552,0.9144,3813.7,3813.6,2.62219425]
[1754578160567,0.9144,3813.7,3813.3,2.62239283]
[1754578160772,14.5,3814.1,3813.0,2.6225516]
[1754578160773,0.9144,3813.6,3813.0,2.6225516]
[1754578160969,5.1214,3813.5,3813.0,2.62259942]
[1754578161167,14.5,3813.4,3812.9,2.62262596]
[1754578161398,0.9144,3813.3,3812.9,2.62262596]
[1754578161697,0.9144,3813.3,3813.2,2.62246931]
[1754578162056,19.6194,3813.3,3813.2,2.62246931]
[1754578162257,4.204,3813.4,3813.3,2.62240054]
[1754578162494,4.204,3813.5,3813.4,2.62233177]
[1754578163355,4.204,3813.5,3812.5,3.19589256]
[1754578163356,5.1184,3813.5,3812.5,3.19589256]
[1754578163688,2.8959114,3813.4,3812.7,2.62275251]
[1754578163988,2.8959114,3813.4,3811.3,2.62374662]
[1754578163989,15.4144,3813.3,3811.4,0.49]
[1754578164288,15.4144,3813.3,3812.4,2.75421224]
[1754578164289,0.1312,3812.9,3812.4,2.75421224]
[1754578164609,5.1174,3812.8,3812.4,0.1312]
[1754578164762,5.1174,3812.8,3812.7,2.62281322]
[1754578164964,19.6174,3812.8,3812.6,0.1312]
[1754578165159,0.9144,3812.7,3812.6,0.1312]
[1754578165355,0.9144,3812.7,3812.6,2.75408202]
[1754578165356,2.87614,3812.7,3812.6,2.75408202]
[1754578165616,0.9144,3812.7,3812.6,0.1312]
[1754578165762,0.9144,3812.7,3812.4,0.1312]
[1754578165960,18.703,3812.8,3812.4,0.1312]
[1754578166182,0.9144,3812.6,3812.4,0.1312]
[1754578166589,0.9144,3812.5,3812.4,0.1312]
[1754578166784,0.9144,3812.5,3812.2,2.62315151]
[1754578166982,0.9144,3812.4,3812.2,2.62310656]
[1754578167281,4.203,3812.3,3812.2,2.62310656]
[1754578167485,14.5,3812.8,3812.6,2.62286607]
[1754578167671,4.2,3812.7,3812.6,2.62286607]
[1754578167871,5.1414,3812.7,3812.5,2.75413454]
[1754578168109,0.9414,3812.6,3812.5,0.1312]